bitfinex/quotes_SOLUSD_20250305
["timestamp","ask_amount","ask_price","bid_price","bid_amount"]
[1741209280572,18.64964886,145.52,145.49,0.0001]
[1741209280773,22.14737935,145.52,145.49,0.0001]
[1741209280980,1.8046285,145.51,145.49,0.0001]
[1741209281476,20.45427736,145.51,145.49,0.0001]
[1741209282977,101.45427736,145.51,145.49,0.0001]
[1741209284061,81.0,145.51,145.49,0.0001]
[1741209284281,3.49773049,145.52,145.49,0.0001]
[1741209284571,18.64964886,145.53,145.49,0.0001]
[1741209285376,20.45391616,145.53,145.49,0.0001]
[1741209285762,18.64964886,145.53,145.49,0.0001]
[1741209289687,0.033,145.56,145.5,7.9066]
[1741209289858,0.033,145.56,145.5,88.3066]
[1741209290064,18.68264886,145.56,145.5,88.3066]
[1741209291378,18.64964886,145.54,145.49,0.0001]
[1741209291688,1.80422316,145.53,145.49,0.0001]
[1741209291863,18.64964886,145.51,145.49,0.0001]
[1741209293984,99.64964886,145.51,145.49,0.0001]
[1741209295283,99.64964886,145.51,145.46,0.03]
[1741209295284,101.45430627,145.5,145.46,0.03]
[1741209295586,99.64964886,145.49,145.46,0.03]
[1741209296378,101.45447351,145.49,145.46,0.03]
[1741209297464,99.64964886,145.49,145.46,0.03]
[1741209298172,82.80478433,145.52,145.46,0.03]
[1741209298374,18.64964886,145.51,145.46,0.03]
[1741209299381,81.0,145.52,145.46,0.03]
[1741209299382,0.033,145.53,145.46,80.43]
[1741209300363,0.033,145.53,145.47,1.5608]
[1741209301691,0.033,145.53,145.48,6.2339]
[1741209302892,18.68264886,145.53,145.48,6.2339]
[1741209307425,0.033,145.53,145.48,86.6339]
[1741209307904,0.033,145.53,145.48,93.5076]
[1741209308297,0.033,145.53,145.48,86.6339]
[1741209309101,0.033,145.53,145.49,0.68351037]
[1741209309303,0.033,145.53,145.5,18.61761023]
[1741209309473,0.033,145.53,145.51,2.278846]
[1741209310705,0.033,145.53,145.51,9.150746]
[1741209311904,0.033,145.56,145.52,6.2175]
[1741209312078,0.033,145.56,145.53,19.29939231]
[1741209312412,0.033,145.56,145.54,20.21421023]
[1741209312605,0.033,145.56,145.55,0.68135429]
[1741209312773,0.033,145.56,145.55,155.18135429]
[1741209312980,0.033,145.56,145.55,154.5]
[1741209313486,0.033,145.62,145.56,6.1728]
[1741209313791,0.033,145.62,145.56,160.6728]
[1741209314576,0.033,145.62,145.61,20.16241023]
[1741209314781,0.033,145.62,145.61,100.56241023]
[1741209314993,0.033,145.62,145.61,101.24216109]
[1741209315195,0.033,145.62,145.61,82.62455086]
[1741209315376,0.033,145.62,145.61,81.9448]
[1741209320495,0.033,145.62,145.61,88.8124]
[1741209320791,0.033,145.62,145.61,82.62458632]
[1741209322007,0.033,145.62,145.61,81.9448]
[1741209322515,0.033,145.62,145.61,80.4]
[1741209323011,0.033,145.62,145.57,156.0513]
[1741209323217,0.033,145.62,145.57,81.9513]
[1741209323380,0.033,145.62,145.57,80.4]
[1741209323584,0.033,145.62,145.53,162.718]
[1741209323784,0.033,145.62,145.53,88.618]
[1741209326013,0.033,145.62,145.53,95.4891]
[1741209326317,0.033,145.62,145.53,88.618]
[1741209327925,18.64964886,145.61,145.53,80.4]
[1741209328094,18.64964886,145.59,145.49,87.9823]
[1741209328299,81.0,145.58,145.49,87.9823]
[1741209328523,99.64964886,145.57,145.49,80.4]
[1741209329023,18.64964886,145.55,145.49,80.4]
[1741209329200,99.64964886,145.55,145.47,80.4]
[1741209331615,0.14216157,145.53,145.47,80.4]
[1741209333320,18.79181043,145.53,145.47,80.4]
[1741209336132,23.84504742,145.53,145.46,0.03]
[1741209336303,104.84504742,145.53,145.46,0.03]
[1741209336503,18.64964886,145.51,145.46,0.03]
[1741209336812,18.64964886,145.49,145.46,0.03]
[1741209337002,99.64964886,145.49,145.46,0.03]
[1741209337203,105.22888381,145.49,145.46,0.03]
[1741209337817,107.03386503,145.49,145.46,0.03]
[1741209338039,101.45463008,145.49,145.46,0.03]
[1741209339111,18.64964886,145.47,145.46,0.03]
[1741209339841,18.64964886,145.47,145.46,0.0001]
[1741209342026,99.64964886,145.47,145.46,0.0001]
[1741209346330,99.64964886,145.47,145.44,0.03]
[1741209346518,24.82644886,145.45,145.43,0.0001]
[1741209346837,20.45510236,145.44,145.4,0.03]
[1741209347034,18.64964886,145.43,145.4,0.03]
[1741209350643,82.6356,145.46,145.4,0.03]
[1741209351335,18.64964886,145.45,145.4,0.03]
[1741209354619,1.80535329,145.44,145.4,0.03]
[1741209357239,18.64964886,145.43,145.4,0.0001]
[1741209357426,20.45530846,145.43,145.4,0.0001]
[1741209357739,18.64964886,145.41,145.38,0.0001]
[1741209357947,101.45557272,145.41,145.38,0.0001]
[1741209358311,101.45557272,145.41,145.32,0.03]
[1741209358312,81.0,145.4,145.32,0.03]
[1741209358528,101.45579672,145.39,145.32,0.03]
[1741209359039,99.64964886,145.39,145.32,0.03]
[1741209361341,0.14216157,145.38,145.32,0.03]
[1741209362043,99.64964886,145.39,145.32,0.03]
[1741209362245,81.0,145.41,145.32,80.43]
[1741209362460,18.79181043,145.4,145.32,80.43]
[1741209362951,81.0,145.43,145.33,19.30463256]
[1741209363241,81.0,145.43,145.34,1.5706]
[1741209363635,81.0,145.43,145.34,2.25724441]
[1741209364154,18.79181043,145.42,145.34,1.5706]
[1741209365845,1.80572828,145.41,145.34,0.03]
[1741209366560,18.64964886,145.4,145.34,0.03]
[1741209366744,81.0,145.39,145.34,0.03]
[1741209370336,20.45577034,145.38,145.34,0.03]
[1741209370948,18.64964886,145.38,145.34,0.03]
[1741209371952,87.24,145.42,145.34,0.03]
[1741209372150,81.0,145.42,145.34,0.03]
[1741209372354,81.0,145.42,145.34,0.71673154]
[1741209372648,81.0,145.45,145.35,20.16901023]
[1741209372852,0.033,145.47,145.36,0.68581466]
[1741209373165,3.40368965,145.47,145.36,0.68581466]
[1741209373754,0.033,145.47,145.37,6.8789]
[1741209373949,0.033,145.47,145.39,6.3633]
[1741209374150,0.033,145.47,145.4,0.68525527]
[1741209374866,0.033,145.47,145.4,312.68525527]
[1741209375070,0.033,145.47,145.4,312.0]
[1741209375275,0.033,145.47,145.39,160.8633]
[1741209375454,0.033,145.47,145.39,86.7633]
[1741209377486,18.64964886,145.45,145.36,161.0252]
[1741209377775,81.14216157,145.44,145.36,86.9252]
[1741209384648,84.53055996,145.44,145.36,86.9252]
[1741209386782,99.64964886,145.43,145.36,80.4]
[1741209387287,81.0,145.42,145.34,80.43]
[1741209387525,103.45528421,145.41,145.34,0.03]
[1741209387783,18.64964886,145.39,145.34,0.03]
[1741209387986,18.64964886,145.37,145.34,0.03]
[1741209391395,22.13443806,145.37,145.32,0.03]
[1741209392188,18.64964886,145.35,145.31,0.0001]
[1741209392486,81.0,145.34,145.31,0.0001]
[1741209393481,18.64964886,145.33,145.31,0.0001]
[1741209395771,0.14216157,145.32,145.31,0.0001]
[1741209395980,99.79181043,145.32,145.31,0.0001]
[1741209396176,99.79181043,145.32,145.25,0.03]
[1741209396177,0.14216157,145.3,145.25,0.03]
[1741209396382,18.79181043,145.28,145.25,0.03]
[1741209396866,18.79181043,145.28,145.21,0.03]
[1741209397069,99.79181043,145.28,145.21,0.03]
[1741209397261,81.0,145.27,145.21,0.03]
[1741209397491,0.14216157,145.26,145.21,0.03]
[1741209397692,18.79181043,145.26,145.21,0.03]
[1741209399595,18.64964886,145.26,145.21,0.03]
[1741209399794,81.0,145.27,145.21,0.03]
[1741209399981,81.0,145.27,145.17,85.03862071]
[1741209400183,18.64964886,145.27,145.17,157.13862071]
[1741209400379,3.40145873,145.28,145.18,0.14216157]
[1741209400584,81.0,145.3,145.19,18.61761023]
[1741209400795,81.0,145.3,145.2,18.61761023]
[1741209401001,81.0,145.3,145.19,168.86793094]
[1741209401002,18.64964886,145.29,145.19,168.86793094]
[1741209401701,18.64964886,145.29,145.19,175.75513094]
[1741209401880,18.64964886,145.29,145.19,157.13762071]
[1741209402498,18.64964886,145.29,145.19,150.25032071]
[1741209402699,18.64964886,145.29,145.19,150.28032071]
[1741209402998,18.64964886,145.29,145.19,462.28032071]
[1741209403497,18.64964886,145.29,145.19,150.28032071]
[1741209403700,81.0,145.28,145.19,78.18032071]
[1741209404087,18.64964886,145.27,145.19,78.18032071]
[1741209404278,18.64964886,145.25,145.19,78.18032071]
[1741209406785,82.6301,145.26,145.19,85.06772071]
[1741209407190,82.6301,145.26,145.19,78.18032071]
[1741209407413,1.6301,145.26,145.19,78.18032071]
[1741209408116,89.36346212,145.25,145.19,0.03]
[1741209408976,87.5562,145.25,145.19,0.03]
[1741209409710,18.64964886,145.24,145.19,0.03]
[1741209411208,87.5562,145.25,145.19,0.03]
[1741209412275,18.64964886,145.24,145.19,0.03]
[1741209416338,99.64964886,145.24,145.19,0.03]
[1741209416486,99.64964886,145.24,145.16,0.03]
[1741209416811,81.0,145.23,145.16,0.03]
[1741209417016,81.0,145.22,145.16,0.03]
[1741209417310,18.64964886,145.21,145.16,0.03]
[1741209417497,99.64964886,145.21,145.16,0.03]
[1741209418523,99.64964886,145.21,145.13,1.8403986]
[1741209418725,18.64964886,145.19,145.13,1.8403986]
[1741209421320,81.0,145.18,145.13,1.8403986]
[1741209422821,18.64964886,145.19,145.13,1.8403986]
[1741209423123,88.7437,145.2,145.13,1.8403986]
[1741209423529,82.5223,145.2,145.13,8.7306986]
[1741209423705,81.0,145.23,145.13,82.7403986]
[1741209424031,18.64964886,145.22,145.13,82.7403986]
[1741209425029,81.0,145.23,145.13,101.35800883]
[1741209425336,81.0,145.23,145.13,89.6306986]
[1741209426339,18.64964886,145.22,145.13,82.7403986]
[1741209427438,99.64964886,145.22,145.13,1.8403986]
[1741209429423,99.64964886,145.22,145.13,82.7403986]
[1741209431549,13.26917767,145.24,145.13,1.8403986]
[1741209431550,18.64964886,145.2,145.13,1.8403986]
[1741209431755,18.64964886,145.18,145.13,1.8403986]
[1741209434556,18.64964886,145.18,145.13,1.3403986]
[1741209436952,81.0,145.17,145.13,1.3403986]
[1741209437153,20.45851297,145.16,145.13,9.86e-05]
[1741209437353,18.64964886,145.14,145.13,9.86e-05]
[1741209438040,18.64964886,145.14,145.07,6.2006]
[1741209438041,99.64964886,145.14,145.06,82.4307]
[1741209438571,1.80930046,145.13,145.06,80.9]
[1741209438755,18.64964886,145.12,145.03,6.3201]
[1741209439259,18.64964886,145.12,145.02,1.6325]
[1741209439630,99.64964886,145.12,145.02,27.14541023]
[1741209439831,99.64964886,145.12,145.03,18.61761023]
[1741209440255,99.64964886,145.12,145.03,99.51761023]
[1741209440461,99.64964886,145.12,145.03,80.9]
[1741209440647,99.64964886,145.12,145.03,80.93]
[1741209441162,81.0,145.12,145.03,106.44261023]
[1741209441368,3.40533627,145.14,145.05,18.61761023]
[1741209441663,3.40533627,145.14,145.04,25.56593357]
[1741209441664,81.0,145.16,145.06,18.61761023]
[1741209441833,7.6169,145.17,145.06,99.51761023]
[1741209441834,99.64964886,145.15,145.06,99.51761023]
[1741209442029,81.0,145.15,145.07,18.61761023]
[1741209442258,81.0,145.15,145.08,1.5882]
[1741209443989,81.0,145.15,145.08,8.4808]
[1741209444885,1.5803,145.17,145.08,89.3808]
[1741209445965,3.55818481,145.18,145.08,89.3808]
[1741209446160,0.033,145.18,145.1,24.97831023]
[1741209446409,0.033,145.18,145.1,177.97831023]
[1741209447287,0.033,145.18,145.11,6.8913]
[1741209447495,0.033,145.18,145.14,18.61761023]
[1741209447788,0.033,145.18,145.15,1.5312]
[1741209448392,0.033,145.18,145.14,153.0]
[1741209450898,0.033,145.18,145.11,153.0]
[1741209451097,81.033,145.18,145.11,80.9]
[1741209451414,18.64964886,145.17,145.08,154.5312]
[1741209451574,99.64964886,145.17,145.08,82.4312]
[1741209452203,101.45835926,145.17,145.08,80.9]
[1741209452580,99.64964886,145.17,145.08,80.9]
[1741209454218,81.0,145.17,145.13,0.03]
[1741209457120,0.033,145.18,145.13,0.03]
[1741209459016,0.033,145.18,145.08,80.9]
[1741209460218,1.80868327,145.17,145.08,80.9]
[1741209460434,18.64964886,145.15,145.08,80.9]
[1741209460624,99.64964886,145.15,145.08,80.9]
[1741209461403,81.0,145.15,145.08,80.9]
[1741209463722,1.6437,145.16,145.08,80.9]
[1741209464215,18.64964886,145.15,145.08,80.9]
[1741209465624,81.0,145.14,145.06,87.2607]
[1741209466132,81.0,145.14,145.06,80.9]
[1741209466320,18.64964886,145.13,145.06,80.9]
[1741209466906,18.64964886,145.13,145.08,0.03]
[1741209467631,18.64964886,145.11,145.03,0.03]
[1741209467836,81.0,145.1,145.03,0.03]
[1741209468045,81.0,145.12,145.03,0.03]
[1741209472246,84.46868951,145.12,145.03,0.03]
[1741209472716,81.0,145.11,145.03,80.93]
[1741209473818,18.64964886,145.1,145.03,80.93]
[1741209475114,82.5804,145.09,145.03,0.03]
[1741209475354,84.38997612,145.09,145.03,0.03]
[1741209475737,82.5804,145.09,145.03,0.03]
[1741209476125,81.0,145.08,145.03,0.03]
[1741209476322,3.50017282,145.11,145.03,0.03]
[1741209476531,81.0,145.1,145.03,0.03]
[1741209477738,18.64964886,145.09,145.03,0.03]
[1741209477934,101.45947722,145.09,145.03,0.03]
[1741209479043,0.14216157,145.08,145.03,0.03]
[1741209479239,81.0,145.07,145.03,0.03]
[1741209480333,18.79181043,145.06,145.03,0.0001]
[1741209480545,20.60183219,145.06,145.03,0.0001]
[1741209481045,18.64964886,145.04,145.02,0.0101]
[1741209481248,18.64964886,145.02,145.0,0.0001]
[1741209481434,18.64964886,145.02,144.93,80.9]
[1741209481621,81.0,145.01,144.93,80.9]
[1741209482224,18.64964886,145.02,144.93,153.0]
[1741209482538,18.64964886,145.02,144.93,80.9]
[1741209482732,81.0,145.03,144.93,87.7998]
[1741209482931,81.0,145.03,144.93,106.41741023]
[1741209483251,81.0,145.03,144.93,87.7998]
[1741209483444,81.0,145.03,144.93,106.41741023]
[1741209483752,29.84228786,145.05,144.95,18.61761023]
[1741209483753,9.666639,145.05,144.95,18.61761023]
[1741209484053,3.406639,145.05,144.98,6.2524]
[1741209484359,18.64964886,145.05,144.98,87.1524]
[1741209485020,84.50266712,145.06,144.98,87.1524]
[1741209485641,84.50266712,145.06,144.98,105.77001023]
[1741209485642,81.0,145.06,144.98,105.77001023]
[1741209485850,84.43315329,145.09,145.0,18.61761023]
[1741209486057,84.43315329,145.09,145.01,25.51361023]
[1741209486240,81.0,145.12,145.02,1.5032]
[1741209486427,99.64964886,145.11,145.02,82.4032]
[1741209487442,81.0,145.1,145.02,82.4032]
[1741209487842,81.0,145.1,145.02,107.91621023]
[1741209488029,81.0,145.1,145.03,18.61761023]
[1741209488237,81.0,145.14,145.04,6.384]
[1741209489152,81.0,145.14,145.04,13.2782]
[1741209489451,81.0,145.14,145.04,31.89581023]
[1741209489950,81.0,145.14,145.04,112.79581023]
[1741209490338,81.0,145.14,145.04,424.79581023]
[1741209491157,81.0,145.14,145.04,406.1782]
[1741209491468,81.0,145.14,145.04,399.284]
[1741209492234,81.0,145.14,145.04,87.284]
[1741209492755,18.64964886,145.13,145.04,87.284]
[1741209492961,0.033,145.1,145.04,87.284]
[1741209493260,99.64964886,145.09,145.02,1.5032]
[1741209493553,81.0,145.08,145.02,1.5032]
[1741209494132,18.64964886,145.07,145.0,87.3366]
[1741209494359,18.64964886,145.07,145.0,87.3066]
[1741209495232,18.64964886,145.07,145.0,80.9]
[1741209495455,18.64964886,145.07,144.98,1.5475]
[1741209495456,18.64964886,145.05,144.98,1.5475]
[1741209495665,81.0,145.04,144.98,1.5475]
[1741209496654,81.0,145.04,144.96,87.3066]
[1741209496839,18.64964886,145.03,144.96,87.3066]
[1741209497044,18.64964886,145.03,144.96,80.9]
[1741209497256,20.46021195,145.03,144.96,80.9]
[1741209497439,81.0,145.02,144.94,1.5728]
[1741209497636,81.0,145.01,144.94,1.5728]
[1741209498349,81.0,145.01,144.92,87.0638]
[1741209500565,81.0,145.01,144.92,112.58151023]
[1741209501869,3.39984195,145.03,144.95,18.61761023]
[1741209502166,81.0,145.06,144.98,6.051]
[1741209502372,81.0,145.06,144.98,86.951]
[1741209503560,81.0,145.06,144.98,93.8481]
[1741209503870,81.0,145.06,144.99,18.61761023]
[1741209504847,81.033,145.1,144.99,171.61761023]
[1741209505569,81.033,145.1,144.99,159.8965]
[1741209505952,84.47166684,145.1,144.99,159.8965]
[1741209506763,84.47166684,145.1,144.99,178.51411023]
[1741209506971,81.0,145.09,144.99,106.41411023]
[1741209507272,81.0,145.09,145.0,18.61761023]
[1741209508879,81.0,145.09,145.0,99.51761023]
[1741209509679,3.47166684,145.1,145.02,1.5004]
[1741209509865,3.47166684,145.1,145.02,82.4004]
[1741209510377,3.47166684,145.1,145.02,101.01801023]
[1741209510773,3.47166684,145.1,145.02,161.3958]
[1741209510959,3.47166684,145.1,145.02,154.5004]
[1741209511952,99.64964886,145.09,144.98,88.4514]
[1741209512153,18.64964886,145.07,144.96,80.9]
[1741209512339,84.47329707,145.08,144.94,7.6341]
[1741209512340,18.64964886,145.05,144.94,7.6341]
[1741209512544,81.0,145.04,144.94,7.6341]
[1741209515008,18.64964886,145.03,144.94,7.6341]
[1741209515194,20.46024773,145.03,144.94,7.6341]
[1741209515707,18.64964886,145.03,144.94,7.6341]
[1741209517090,81.0,145.02,144.94,7.6341]
[1741209519713,81.0,145.02,144.93,80.9]
[1741209520212,81.0,145.01,144.93,80.9]
[1741209521205,3.42578174,145.04,144.93,106.41741023]
[1741209521206,84.42578174,145.04,144.93,106.41741023]
[1741209521416,84.42578174,145.04,144.94,18.61761023]
[1741209521417,81.0,145.04,144.94,18.61761023]
[1741209521712,81.0,145.04,144.95,25.51651023]
[1741209522582,81.0,145.04,144.95,6.8989]
[1741209522788,81.0,145.04,144.94,171.61761023]
[1741209522997,84.41251728,145.04,144.94,178.51681023]
[1741209523397,84.41251728,145.04,144.94,153.0]
[1741209524017,84.41251728,145.04,144.94,80.9]
[1741209524685,18.64964886,145.03,144.94,80.9]
[1741209526394,84.41251728,145.04,144.94,80.9]
[1741209527818,84.41251728,145.04,144.94,87.7993]
[1741209528310,84.41251728,145.04,144.94,80.9]
[1741209528704,84.41251728,145.04,144.94,87.7992]
[1741209529108,81.0,145.03,144.94,87.7992]
[1741209529720,81.0,145.03,144.94,106.41681023]
[1741209531313,81.0,145.03,144.94,106.44681023]
[1741209531822,81.033,145.03,144.94,106.44681023]
[1741209531999,81.033,145.03,144.94,80.93]
[1741209533721,81.033,145.03,144.94,87.8292]
[1741209536015,81.033,145.03,144.94,80.93]
[1741209536540,81.033,145.03,144.94,87.8292]
[1741209537510,81.033,145.03,144.94,80.93]
[1741209537917,18.64964886,145.02,144.94,80.93]
[1741209538921,81.0,145.01,144.94,0.03]
[1741209540522,0.033,145.03,144.95,7.7352]
[1741209541118,0.033,145.03,144.97,18.61761023]
[1741209541309,0.033,145.03,144.98,18.61761023]
[1741209541703,0.033,145.03,144.97,171.61761023]
[1741209541899,0.033,145.03,145.02,18.61761023]
[1741209542208,0.033,145.03,145.02,99.51761023]
[1741209542414,0.033,145.03,145.02,80.9]
[1741209543504,0.033,145.03,145.02,106.41321023]
[1741209544239,0.033,145.03,145.02,80.9]
[1741209546935,0.033,145.03,144.99,98.71461023]
[1741209546936,0.033,145.03,145.0,80.9]
[1741209548833,0.033,145.03,144.99,7.997]
[1741209550254,0.033,145.03,144.99,26.61461023]
[1741209550429,0.033,145.03,145.0,18.61761023]
[1741209552254,0.033,145.03,144.99,26.61461023]
[1741209552622,0.033,145.03,144.99,33.51161023]
[1741209552844,0.033,145.03,145.0,18.61761023]
[1741209553046,0.033,145.03,145.02,18.61761023]
[1741209553254,0.033,145.03,145.02,99.51761023]
[1741209553436,0.033,145.03,145.02,411.51761023]
[1741209554544,0.033,145.03,145.02,437.4893438]
[1741209554922,0.033,145.03,145.02,509.5893438]
[1741209555260,0.033,145.1,145.02,509.5893438]
[1741209555261,0.033,145.1,145.04,6.2701]
[1741209555457,0.033,145.1,145.09,18.61761023]
[1741209555629,0.033,145.1,145.09,99.51761023]
[1741209555835,0.033,145.1,145.09,80.9]
[1741209558356,0.033,145.1,145.09,171.61761023]
[1741209559834,0.033,145.1,145.09,153.0]
[1741209560153,0.033,145.1,145.09,80.9]
[1741209564753,0.033,145.1,145.07,153.0]
[1741209565558,0.033,145.1,145.07,159.8932]
[1741209566171,0.033,145.1,145.07,178.51071023]
[1741209566870,0.033,145.1,145.08,18.61761023]
[1741209567242,0.033,145.1,145.09,18.61761023]
[1741209567447,0.033,145.1,145.09,199.2120438]
[1741209567645,0.033,145.1,145.09,199.35420537]
[1741209567965,0.033,145.15,145.1,19.21829514]
[1741209568156,0.033,145.15,145.14,18.61761023]
[1741209568345,0.033,145.15,145.14,171.61761023]
[1741209569245,0.033,145.15,145.14,437.62570537]
[1741209569675,0.033,145.15,145.14,511.35180537]
[1741209570048,0.033,145.15,145.14,517.80170537]
[1741209570248,0.033,145.18,145.15,39.91829514]
[1741209570453,0.033,145.18,145.17,37.6937438]
[1741209570648,0.033,145.25,145.21,0.56864628]
[1741209570979,0.033,145.25,145.24,0.14216157]
[1741209571160,0.033,145.25,145.24,37.83590537]
[1741209572664,0.033,145.25,145.24,55.94638446]
[1741209573059,0.033,145.25,145.24,49.06128446]
[1741209573466,0.033,145.25,145.24,465.28432314]
[1741209573661,0.033,145.25,145.24,465.0]
[1741209573878,0.033,145.25,145.24,153.0]
[1741209576679,0.033,145.25,145.24,80.9]
[1741209577868,0.033,145.25,145.24,129.96128446]
[1741209578181,0.033,145.25,145.24,202.06128446]
[1741209579675,0.033,145.25,145.24,208.94638446]
[1741209580582,0.033,145.25,145.24,216.96448446]
[1741209580780,0.033,145.29,145.25,19.21829514]
[1741209580979,0.033,145.29,145.28,49.06128446]
[1741209581185,0.033,145.29,145.28,202.06128446]
[1741209581875,0.033,145.29,145.28,208.94448446]
[1741209582583,0.033,145.29,145.28,153.0]
[1741209582784,0.033,145.29,145.28,80.9]
[1741209583789,0.033,145.29,145.26,80.9]
[1741209585681,0.033,145.29,145.24,80.9]
[1741209587563,0.033,145.29,145.25,19.21829514]
[1741209587869,0.033,145.29,145.25,514.06128446]
[1741209588183,0.033,145.29,145.25,484.21829514]
[1741209588379,0.033,145.29,145.25,520.94588446]
[1741209588890,0.033,145.29,145.25,80.9]
[1741209591189,0.033,145.29,145.25,110.74298932]
[1741209591893,0.033,145.29,145.25,422.74298932]
[1741209592604,0.033,145.29,145.25,429.62748932]
[1741209592786,0.033,145.29,145.25,422.74298932]
[1741209593000,0.033,145.29,145.25,392.9]
[1741209594407,0.033,145.29,145.25,465.0]
[1741209594602,0.033,145.29,145.25,153.0]
[1741209595611,6.1322,145.32,145.25,153.0]
[1741209595815,87.1322,145.32,145.25,80.9]
[1741209596891,87.1322,145.32,145.25,80.93]
[1741209597209,0.033,145.29,145.25,80.93]
[1741209597587,0.033,145.29,145.25,392.93]
[1741209598986,0.033,145.29,145.25,80.93]
[1741209600213,0.033,145.29,145.25,117.65738932]
[1741209600513,0.033,145.29,145.25,189.75738932]
[1741209601279,0.033,145.29,145.25,182.87298932]
[1741209601586,0.033,145.29,145.25,153.03]
[1741209601900,0.033,145.29,145.26,48.91912289]
[1741209602093,0.033,145.29,145.27,29.84298932]
[1741209602718,0.033,145.29,145.26,55.80312289]
[1741209603009,0.033,145.29,145.28,29.84298932]
[1741209603213,0.033,145.29,145.28,129.81912289]
[1741209604415,0.033,145.29,145.28,208.94448446]
[1741209605509,0.033,145.29,145.28,520.94448446]
[1741209607017,0.033,145.33,145.29,19.21829514]
[1741209607218,0.033,145.33,145.32,30.26947403]
[1741209607508,0.033,145.33,145.32,201.91912289]
[1741209608087,0.033,145.33,145.32,210.56978446]
[1741209609886,0.033,145.33,145.32,172.21829514]
[1741209610103,0.033,145.33,145.32,484.21829514]
[1741209610307,0.033,145.33,145.32,172.07613357]
[1741209611716,0.033,145.33,145.32,201.91912289]
[1741209611890,0.033,145.33,145.32,80.9]
[1741209613218,0.033,145.33,145.3,80.9]
[1741209615706,0.033,145.33,145.3,87.7823]
[1741209615901,0.033,145.33,145.3,80.9]
[1741209618312,0.033,145.33,145.3,153.0]
[1741209621053,0.033,145.33,145.3,80.9]
[1741209621247,1.5741,145.33,145.3,80.9]
[1741209623947,0.033,145.33,145.3,80.9]
[1741209634958,0.033,145.33,145.3,392.9]
[1741209635965,0.033,145.33,145.3,80.9]
[1741209649874,7.784,145.32,145.28,0.03]
[1741209660283,0.033,145.33,145.28,0.03]
[1741209661785,0.033,145.33,145.28,80.93]
[1741209664267,0.033,145.33,145.28,392.93]
[1741209664667,0.033,145.33,145.28,404.8696913]
[1741209664883,0.033,145.33,145.28,411.7527913]
[1741209665162,0.033,145.33,145.28,404.8696913]
[1741209665366,0.033,145.33,145.28,392.93]
[1741209667087,0.033,145.33,145.28,80.93]
[1741209667288,0.033,145.33,145.28,87.8132]
[1741209668695,0.033,145.33,145.28,80.93]
[1741209669992,0.033,145.33,145.28,392.93]
[1741209670691,0.033,145.33,145.28,80.93]
[1741209671110,0.033,145.33,145.28,0.03]
[1741209671565,88.6515,145.32,145.25,0.03]
[1741209671892,1.6492,145.29,145.25,0.03]
[1741209672093,82.6492,145.29,145.25,0.03]
[1741209673089,1.6492,145.29,145.25,0.03]
[1741209673589,6.0235,145.32,145.25,0.03]
[1741209677174,6.0235,145.32,145.25,19.24829514]
[1741209677391,6.0235,145.32,145.25,118.81153932]
[1741209678373,6.0235,145.32,145.25,190.91153932]
[1741209678574,6.0235,145.32,145.25,197.79603932]
[1741209680404,6.0235,145.32,145.25,190.91153932]
[1741209680585,6.0235,145.32,145.25,153.03]